fUST/lending_fUST_20260106
["ID","MTS","AMOUNT","RATE_DAILY","PERIOD"]
[400523792,1767697840386,-500.0,0.00012909,2]
[400523795,1767697840396,-4829.85612399,0.00012933,2]
[400523797,1767697840405,-250.0,0.00012944,2]
[400523799,1767697840414,-500.0,0.00013046,2]
[400523801,1767697840424,-451.25145523,0.00013183,2]
[400523803,1767697840433,-500.0,0.00013273,2]
[400523805,1767697840442,-500.0,0.00013273,2]
[400523807,1767697840451,-500.0,0.00013273,2]
[400523808,1767697840461,-240.91,0.0001332,2]
[400523811,1767697840470,-165.11029521,0.00013425,2]
[400523813,1767697840480,-500.0,0.00013672,2]
[400523815,1767697840491,-500.0,0.00013672,2]
[400523817,1767697840500,-500.0,0.00013672,2]
[400523819,1767697840510,-500.0,0.00013672,2]
[400523821,1767697840519,-500.0,0.00013672,2]
[400523823,1767697840528,-500.0,0.00013672,2]
[400523825,1767697840538,-500.0,0.00013672,2]
[400523827,1767697840547,-500.0,0.00013672,2]
[400523829,1767697840557,-500.0,0.00013672,2]
[400523831,1767697840567,-300.0,0.00013673,2]
[400523833,1767697840576,-200.0,0.00013698,2]
[400523835,1767697840586,-500.0,0.00013698,2]
[400523837,1767697840596,-188.11386458,0.00013699,2]
[400523839,1767697840605,-885.4942762,0.00013699,2]
[400523841,1767697840615,-273.144062,0.00013699,2]
[400523843,1767697840624,-443.89072638,0.00013699,2]
[400523845,1767697840634,-500.0,0.00013699,2]
[400523847,1767697840643,-501.0386878,0.00013699,2]
[400523849,1767697840653,-500.0,0.00013699,2]
[400523851,1767697840662,-504.92626039,0.00013699,2]
[400523853,1767697840672,-338.10821472,0.00013699,2]
[400523855,1767697840681,-502.2601968,0.00013699,2]
[400523858,1767697840692,-501.00450759,0.00013699,2]
[400523860,1767697840701,-500.54517436,0.00013699,2]
[400523862,1767697840710,-500.81877837,0.00013699,2]
[400523864,1767697840719,-634.09365022,0.00013699,2]
[400523866,1767697840729,-505.14600849,0.00013699,2]
[400523868,1767697840738,-151.0,0.00013699,2]
[400523870,1767697840747,-269.211237,0.00013699,2]
[400523872,1767697840758,-151.0,0.00013699,2]
[400523873,1767697840767,-151.0,0.00013699,2]
[400523875,1767697840777,-151.0,0.00013699,2]
[400523877,1767697840786,-151.0,0.00013699,2]
[400523880,1767697840797,-500.0,0.00013699,2]
[400523882,1767697840807,-500.0,0.00013699,2]
[400523884,1767697840817,-500.0,0.00013699,2]
[400523886,1767697840826,-500.0,0.00013699,2]
[400523888,1767697840836,-500.0,0.00013699,2]
[400523890,1767697840845,-500.0,0.00013699,2]
[400523892,1767697840855,-500.0,0.00013699,2]
[400523894,1767697840864,-500.0,0.00013699,2]
[400523896,1767697840873,-500.0,0.00013699,2]
[400523898,1767697840882,-500.0,0.00013699,2]
[400523900,1767697840891,-500.0,0.00013699,2]
[400523902,1767697840901,-500.0,0.00013699,2]
[400523904,1767697840911,-500.0,0.00013699,2]
[400523906,1767697840920,-500.0,0.00013699,2]
[400523908,1767697840930,-500.0,0.00013699,2]
[400523910,1767697840940,-500.0,0.00013699,2]
[400523912,1767697840949,-500.0,0.00013699,2]
[400523914,1767697840958,-500.0,0.00013699,2]
[400523916,1767697840968,-500.0,0.00013699,2]
[400523918,1767697840977,-500.0,0.00013699,2]
[400523920,1767697840987,-500.0,0.00013699,2]
[400523922,1767697840996,-500.0,0.00013699,2]
[400523924,1767697841006,-500.0,0.00013699,2]
[400523926,1767697841016,-500.0,0.00013699,2]
[400523928,1767697841025,-500.0,0.00013699,2]
[400523930,1767697841035,-500.0,0.00013699,2]
[400523932,1767697841044,-500.0,0.00013699,2]
[400523934,1767697841054,-500.0,0.00013699,2]
[400523936,1767697841063,-500.0,0.00013699,2]
[400523938,1767697841073,-500.0,0.00013699,2]
[400523940,1767697841083,-500.0,0.00013699,2]
[400523942,1767697841092,-500.0,0.00013699,2]
[400523944,1767697841101,-500.0,0.00013699,2]
[400523946,1767697841111,-500.0,0.00013699,2]
[400523948,1767697841121,-500.0,0.00013699,2]
[400523950,1767697841130,-500.0,0.00013699,2]
[400523952,1767697841139,-500.0,0.00013699,2]
[400523954,1767697841148,-500.0,0.00013699,2]
[400523956,1767697841157,-500.0,0.00013699,2]
[400523958,1767697841167,-500.0,0.00013699,2]
[400523960,1767697841176,-500.0,0.00013699,2]
[400523962,1767697841186,-500.0,0.00013699,2]
[400523964,1767697841195,-599.44676282,0.00013699,2]
[400523966,1767697841205,-500.0,0.00013699,2]
[400523980,1767697841333,-500.0,0.00013699,2]
[400523983,1767697841343,-500.0,0.00013699,2]
[400523984,1767697841352,-500.0,0.00013699,2]
[400523986,1767697841362,-500.0,0.00013699,2]
[400523989,1767697841372,-500.0,0.00013699,2]
[400523991,1767697841381,-500.0,0.00013699,2]
[400523993,1767697841390,-500.0,0.00013699,2]
[400523994,1767697841400,-500.0,0.00013699,2]
[400523997,1767697841418,-500.0,0.00013699,2]
[400524000,1767697841429,-500.0,0.00013699,2]
[400524002,1767697841439,-500.0,0.00013699,2]
[400524004,1767697841449,-500.0,0.00013699,2]
[400524006,1767697841459,-500.0,0.00013699,2]
[400524008,1767697841469,-500.0,0.00013699,2]
[400524010,1767697841479,-500.0,0.00013699,2]
[400524012,1767697841489,-500.0,0.00013699,2]
[400524014,1767697841499,-23236.58118485,0.00013699,2]
[400524016,1767697841510,-23236.58118485,0.00013699,2]
[400524019,1767697841521,-23236.58118485,0.00013699,2]
[400524021,1767697841531,-23236.58118485,0.00013699,2]
[400524023,1767697841541,-23236.58118485,0.00013699,2]
[400524025,1767697841550,-23236.58118485,0.00013699,2]
[400524027,1767697841560,-23236.58118485,0.00013699,2]
[400524029,1767697841570,-23236.58118485,0.00013699,2]
[400524031,1767697841581,-23236.58118485,0.00013699,2]
[400524033,1767697841591,-23236.58118485,0.00013699,2]
[400524035,1767697841600,-23236.58118485,0.00013699,2]
[400524037,1767697841611,-23236.58118485,0.00013699,2]
[400524039,1767697841621,-23236.58118485,0.00013699,2]
[400524041,1767697841632,-23236.58118485,0.00013699,2]
[400524043,1767697841641,-23236.58118485,0.00013699,2]
[400524045,1767697841650,-23236.58118485,0.00013699,2]
[400524047,1767697841660,-23236.58118485,0.00013699,2]
[400524049,1767697841669,-23236.58118485,0.00013699,2]
[400524052,1767697841679,-23236.58118485,0.00013699,2]
[400524054,1767697841689,-23236.58118485,0.00013699,2]
[400524056,1767697841698,-23236.58118485,0.00013699,2]
[400524058,1767697841708,-23236.58118485,0.00013699,2]
[400524060,1767697841717,-23236.58118485,0.00013699,2]
[400524062,1767697841727,-23236.58118485,0.00013699,2]
[400524064,1767697841736,-23236.58118485,0.00013699,2]
[400524066,1767697841746,-23236.58118485,0.00013699,2]
[400524068,1767697841756,-23236.58118485,0.00013699,2]
[400524070,1767697841769,-352.313829,0.00013699,2]
[400524072,1767697841779,-352.313829,0.00013699,2]
[400524074,1767697841789,-352.313829,0.00013699,2]
[400524076,1767697841799,-352.313829,0.00013699,2]
[400524079,1767697841808,-720.0,0.00013715,2]
[400524081,1767697841817,-823.0,0.00013887,2]
[400524083,1767697841827,-346.29264463,0.00014046,2]
[400524085,1767697841836,-275.33,0.00014104,2]
[400524087,1767697841846,-1069.68899292,0.00014175,2]
[400524089,1767697841855,-2909.06697878,0.00014175,2]
[400524091,1767697841864,-1989.37798585,0.00014175,2]
[400524093,1767697841873,-3828.75597171,0.00014391,2]
[400524095,1767697841882,-1041.66666667,0.0001442,2]
[400524097,1767697841891,-100000.0,0.00014882,2]
[400524099,1767697841901,-309.74,0.00014887,2]
[400524101,1767697841910,-1000.0,0.00015,2]
[400524103,1767697841919,-864.0,0.00015087,2]
[400524105,1767697841929,-1152.0,0.00015269,2]
[400524107,1767697841938,-344.16,0.00015671,2]
[400524109,1767697841951,-4748.44496464,0.00015839,4]
[400524111,1767697841961,-3000.0,0.00016,2]
[400524113,1767697841971,-3000.0,0.0001601,2]
[400524115,1767697841980,-3000.0,0.0001602,2]
[400524117,1767697841989,-3000.0,0.0001603,2]
[400524119,1767697841998,-3000.0,0.0001604,2]
[400524121,1767697842008,-392.12549465,0.00016046,2]
[400524123,1767697842017,-3257.727172,0.0001605,2]
[400524125,1767697842026,-7915.336054,0.00016161,2]
[400524127,1767697842035,-160.5,0.00016438,2]
[400524130,1767697842045,-151.0,0.00016438,2]
[400524132,1767697842054,-1000.0,0.00016595,2]
[400524134,1767697842063,-160.5,0.00016762,2]
[400524136,1767697842072,-1613.0,0.00016789,2]
[400524138,1767697842081,-160.5,0.00017086,2]
[400524140,1767697842090,-5668.13395757,0.00017288,6]
[400524142,1767697842100,-160.5,0.00017409,2]
[400524144,1767697842109,-900.98223507,0.00017607,2]
[400524146,1767697842118,-3600.32501133,0.00017607,2]
[400524148,1767697842127,-160.5,0.00017733,2]
[400524150,1767697842136,-260.4277887,0.00017991,2]
[400524152,1767697842145,-153.0,0.00017991,2]
[400524154,1767697842155,-153.0,0.00017991,2]
[400524156,1767697842164,-153.0,0.00017991,2]
[400524158,1767697842175,-153.0,0.00017991,2]
[400524160,1767697842184,-153.0,0.00017991,2]
[400524162,1767697842193,-153.0,0.00017991,2]
[400524164,1767697842203,-153.0,0.00017991,2]
[400524166,1767697842212,-437.95834467,0.00018046,2]
[400524168,1767697842222,-160.5,0.00018057,2]
[400524170,1767697842235,-153.0,0.00018178,2]
[400524172,1767697842245,-1000.0,0.00018255,2]
[400524174,1767697842254,-244.0,0.00018255,2]
[400524176,1767697842264,-2462.94558633,0.00018283,2]
[400524178,1767697842275,-800.0,0.00018356,7]
[400524180,1767697842284,-1235.5288193,0.00018373,2]
[400524182,1767697842293,-38808.7972136,0.00018373,2]
[400524185,1767697842303,-160.5,0.00018381,2]
[400524187,1767697842313,-633.0,0.00018459,2]
[400524189,1767697842322,-500.0,0.00018524,2]
[400524191,1767697842331,-152.0,0.00018525,2]
[400524193,1767697842340,-152.0,0.00018525,2]
[400524195,1767697842350,-152.0,0.00018525,2]
[400524197,1767697842359,-152.0,0.00018525,2]
[400524199,1767697842368,-166.0,0.00018525,2]
[400524201,1767697842378,-152.0,0.00018525,2]
[400524203,1767697842389,-152.0,0.00018525,2]
[400524205,1767697842398,-152.0,0.00018525,2]
[400524207,1767697842407,-166.0,0.00018525,2]
[400524209,1767697842417,-152.0,0.00018525,2]
[400524211,1767697842427,-152.0,0.00018525,2]
[400524213,1767697842436,-166.0,0.00018525,2]
[400524215,1767697842445,-300.09906801,0.00018525,2]
[400524217,1767697842454,-152.0,0.00018525,2]
[400524219,1767697842463,-166.0,0.00018525,2]
[400524221,1767697842473,-152.0,0.00018525,2]
[400524223,1767697842482,-166.0,0.00018525,2]
[400524225,1767697842491,-152.0,0.00018525,2]
[400524227,1767697842500,-166.0,0.00018525,2]
[400524229,1767697842510,-152.0,0.00018525,2]
[400524231,1767697842519,-166.0,0.00018525,2]
[400524233,1767697842528,-152.0,0.00018525,2]
[400524235,1767697842537,-172.0,0.00018525,2]
[400524237,1767697842546,-152.0,0.00018525,2]
[400524239,1767697842555,-152.0,0.00018525,2]
[400524241,1767697842564,-151.0,0.00018525,2]
[400524243,1767697842574,-152.0,0.00018525,2]
[400524245,1767697842583,-151.0,0.00018525,2]
[400524248,1767697842597,-152.0,0.00018525,2]
[400524251,1767697842612,-151.0,0.00018525,2]
[400524253,1767697842626,-152.0,0.00018525,2]
[400524255,1767697842640,-151.0,0.00018525,2]
[400524258,1767697842654,-152.0,0.00018525,2]
[400524260,1767697842666,-151.0,0.00018525,2]
[400524262,1767697842677,-152.0,0.00018525,2]
[400524263,1767697842689,-151.0,0.00018525,2]
[400524264,1767697842702,-152.0,0.00018525,2]
[400524265,1767697842714,-151.0,0.00018525,2]
[400524266,1767697842726,-266.60656086,0.00018525,2]
[400524267,1767697842738,-151.0,0.00018525,2]
[400524268,1767697842751,-151.0,0.00018525,2]
[400524269,1767697842764,-187.9115595,0.00018525,2]
[400524270,1767697842777,-626.0,0.00018555,2]
[400524271,1767697842790,-626.0,0.00018634,2]
[400524272,1767697842804,-160.5,0.00018705,2]
[400524274,1767697842816,-626.0,0.00018709,2]
[400524276,1767697842827,-6587.8229505,0.00018737,9]
[400524278,1767697842838,-626.0,0.00018743,2]
[400524279,1767697842851,-255.207,0.00018782,2]
[400524281,1767697842863,-265.3494209,0.00018782,2]
[400524284,1767697842875,-2398.4119403,0.00018782,2]
[400524286,1767697842887,-496.47127164,0.00018782,2]
[400524288,1767697842899,-30000.0,0.00018782,2]
[400524289,1767697842912,-151.0,0.00018782,2]
[400524290,1767697842923,-151.0,0.00018782,2]
[400524291,1767697842935,-193.274218,0.00018782,2]
[400524292,1767697842944,-352.313829,0.00018782,2]
[400524293,1767697842954,-352.313829,0.00018782,2]
[400524294,1767697842966,-352.313829,0.00018782,2]
[400524295,1767697842977,-352.313829,0.00018782,2]
[400524296,1767697842987,-626.0,0.00018787,2]
[400524297,1767697842999,-151.0,0.00018792,2]
[400524298,1767697843011,-626.0,0.00018802,2]
[400524299,1767697843024,-153.0,0.00018813,2]
[400524300,1767697843035,-306.0,0.00018813,2]
[400524301,1767697843047,-626.0,0.00018818,2]
[400524302,1767697843060,-626.0,0.00018857,2]
[400524303,1767697843072,-150.275,0.00018892,2]
[400524304,1767697843085,-150.994,0.00018892,2]
[400524305,1767697843097,-260.932,0.00018892,2]
[400524306,1767697843109,-626.0,0.00018896,2]
[400524307,1767697843119,-303.44298549,0.000189,2]
[400524308,1767697843129,-170.73155875,0.00018906,25]
[400524309,1767697843138,-626.0,0.0001894,2]
[400524310,1767697843148,-1000.0,0.00018996,5]
[400524311,1767697843162,-703.0,0.00019,5]
[400524312,1767697843173,-160.5,0.00019029,2]
[400524313,1767697843186,-626.0,0.00019036,2]
[400524314,1767697843199,-626.0,0.00019061,2]
[400524315,1767697843211,-644.0,0.00019064,2]
[400524316,1767697843225,-303.44298549,0.00019089,2]
[400524317,1767697843236,-626.0,0.00019092,2]
[400524318,1767697843251,-626.0,0.00019113,2]
[400524319,1767697843266,-2000.0,0.00019116,3]
[400524320,1767697843278,-626.0,0.00019118,2]
[400524321,1767697843289,-2000.0,0.00019125,3]
[400524322,1767697843299,-2000.0,0.00019134,3]
[400524323,1767697843309,-626.0,0.00019139,2]
[400524324,1767697843320,-2000.0,0.00019143,3]
[400524325,1767697843330,-2000.0,0.00019152,3]
[400524326,1767697843341,-2000.0,0.0001916,3]
[400524327,1767697843351,-2000.0,0.00019169,3]
[400524328,1767697843362,-1991.83840283,0.00019178,3]
[400524329,1767697843373,-151.0,0.00019178,2]
[400524330,1767697843384,-2000.0,0.00019178,3]
[400524331,1767697843395,-151.0,0.00019178,2]
[400524332,1767697843406,-191.004961,0.00019178,2]
[400524333,1767697843416,-151.0,0.00019178,2]
[400524334,1767697843428,-153.376724,0.00019178,2]
[400524335,1767697843438,-151.0,0.00019178,2]
[400524336,1767697843449,-236.563669,0.00019178,2]
[400524337,1767697843460,-154.084024,0.00019178,2]
[400524338,1767697843472,-156.305518,0.00019178,2]
[400524339,1767697843484,-154.885858,0.00019178,2]
[400524340,1767697843494,-209.143735,0.00019178,2]
[400524341,1767697843505,-169.766567,0.00019178,2]
[400524342,1767697843516,-151.000005,0.00019178,2]
[400524343,1767697843527,-151.0,0.00019178,2]
[400524344,1767697843538,-153.743312,0.00019178,2]
[400524345,1767697843549,-363.402434,0.00019178,2]
[400524346,1767697843561,-363.402434,0.00019178,2]
[400524347,1767697843572,-363.402434,0.00019178,2]
[400524348,1767697843583,-363.402434,0.00019178,2]
[400524349,1767697843594,-363.402434,0.00019178,2]
[400524350,1767697843605,-363.402434,0.00019178,2]
[400524351,1767697843615,-363.402434,0.00019178,2]
[400524352,1767697843627,-363.402434,0.00019178,2]
[400524353,1767697843638,-151.0,0.00019178,2]
[400524354,1767697843649,-151.0,0.00019178,2]
[400524355,1767697843661,-176.133271,0.00019178,2]
[400524356,1767697843671,-151.0,0.00019178,2]
[400524357,1767697843682,-28920.58,0.000192,2]
[400524359,1767697843693,-151.0,0.000192,2]
[400524360,1767697843705,-600.0,0.000192,2]
[400524361,1767697843716,-644.0,0.00019252,2]
[400524362,1767697843727,-644.0,0.00019278,2]
[400524363,1767697843737,-303.44298549,0.00019278,2]
[400524364,1767697843748,-777.0,0.000193,2]
[400524365,1767697843760,-2487.15318209,0.0001933,2]
[400524366,1767697843771,-514.84070869,0.0001933,2]
[400524367,1767697843782,-27056.21069384,0.0001933,2]
[400524368,1767697843793,-170.73155875,0.00019334,27]
[400524369,1767697843805,-644.0,0.00019348,2]
[400524370,1767697843816,-160.5,0.00019352,2]
[400524371,1767697843828,-600.93946268,0.000194,2]
[400524372,1767697843838,-644.0,0.00019415,2]
[400524373,1767697843849,-800.0,0.00019452,7]
[400524375,1767697843860,-2145.0,0.00019465,2]
[400524377,1767697843870,-1365.0,0.00019465,2]
[400524379,1767697843881,-628.0,0.00019465,2]
[400524381,1767697843891,-529.147,0.00019465,2]
[400524383,1767697843902,-194.752,0.00019465,2]
[400524385,1767697843913,-303.44298549,0.00019467,2]
[400524387,1767697843923,-1777.927917,0.000195,2]
[400524389,1767697843935,-376.93043986,0.00019509,2]
[400524391,1767697843945,-1507.72175943,0.00019509,2]
[400524392,1767697843955,-3392.37395872,0.00019509,2]
[400524393,1767697843965,-6024.85615068,0.00019509,2]
[400524394,1767697843976,-376.83001562,0.00019509,2]
[400524395,1767697843987,-1507.3200625,0.00019509,2]
[400524396,1767697843998,-3391.47014062,0.00019509,2]
[400524397,1767697844011,-6029.28024999,0.00019509,2]
[400524398,1767697844022,-9420.7503906,0.00019509,2]
[400524399,1767697844034,-597.0,0.0001955,2]
[400524400,1767697844045,-2814.13320653,0.000196,2]
[400524401,1767697844056,-303.44298549,0.00019656,2]
[400524402,1767697844068,-644.0,0.0001967,2]
[400524403,1767697844079,-160.5,0.00019676,2]
[400524404,1767697844090,-644.0,0.0001974,2]
[400524405,1767697844100,-170.73155875,0.00019761,29]
[400524406,1767697844113,-800.0,0.00019795,2]
[400524407,1767697844127,-101095.51710166,0.000198,2]
[400524408,1767697844139,-800.0,0.00019806,2]
[400524409,1767697844149,-800.0,0.00019816,2]
[400524410,1767697844301,-336.76219095,0.00019826,2]
[400524411,1767697844321,-800.0,0.00019829,2]
[400524412,1767697844331,-455.16447824,0.00019845,4]
[400524413,1767697844341,-2579.17784983,0.00019878,2]
[400524414,1767697844351,-533.88981491,0.00019878,2]
[400524415,1767697844360,-800.0,0.00019892,2]
[400524416,1767697844370,-800.0,0.00019903,2]
[400524417,1767697844380,-151.0,0.00019903,2]
[400524418,1767697844390,-286.600994,0.00019903,2]
[400524419,1767697844399,-800.0,0.00019907,2]
[400524420,1767697844409,-2000.0,0.00019907,7]
[400524421,1767697844418,-800.0,0.00019922,2]
[400524422,1767697844428,-800.0,0.00019922,2]
[400524423,1767697844436,-151.0,0.00019922,2]
[400524424,1767697844446,-800.0,0.00019944,2]
[400524425,1767697844455,-800.0,0.00019947,2]
[400524426,1767697844464,-800.0,0.00019957,2]
[400524427,1767697844473,-800.0,0.00019964,2]
[400524428,1767697844482,-160.0,0.00019993,5]
[400524429,1767697844492,-4127.738764,0.00019993,4]
[400524430,1767697844500,-765192.58290265,0.0002,2]
[400524431,1767697844640,-557.66978425,0.0002,2]
[400524432,1767697844652,-4448.19331136,0.0002,2]
[400524433,1767697844707,-400.95,0.00012329,2]
[400524434,1767697844716,-18855.16400758,0.0002,2]
[400524451,1767697846526,-2251.57707988,0.00012205,2]
[400524452,1767697846535,-303.39437628,0.000189,2]
[400524453,1767697846550,-151.88709026,0.00019089,2]
[400524454,1767697846559,-15250.95107869,0.0002,2]
[400524455,1767697846638,-743.00982179,0.0002,2]
[400524456,1767698229001,98942.24901245,0.00030137,120]
[400524457,1767698263043,679.98462675,0.0001,10]
[400524458,1767698545920,199.1641422,0.000301,120]
[400525510,1767698711007,5000.0,0.0001,10]
[400528393,1767699038551,-694.4694863,0.0001,7]
[400528395,1767699038563,-243.52520979,0.00010083,2]
[400528397,1767699038573,-3957.668027,0.00010959,2]
[400528399,1767699038583,-169.83,0.00011116,2]
[400528401,1767699038592,-212.29,0.0001191,2]
[400528403,1767699038602,-287.35974756,0.00012083,2]
[400528405,1767699038611,-300.0,0.00012225,2]
[400528407,1767699038623,-8664.02122445,0.00012226,2]
[400528409,1767699038632,-891.09467113,0.00012328,2]
[400528411,1767699038642,-500.0,0.00012328,2]
[400528413,1767699038651,-604.67572108,0.00012328,2]
[400528415,1767699038661,-891.09467113,0.00012328,2]
[400528417,1767699038671,-891.09467113,0.00012328,2]
[400528419,1767699038680,-532.38589584,0.00012328,2]
[400528421,1767699038689,-891.09467113,0.00012328,2]
[400528423,1767699038699,-891.09467113,0.00012328,2]
[400528424,1767699038708,-891.09467113,0.00012328,2]
[400528426,1767699038717,-891.09467113,0.00012328,2]
[400528427,1767699038727,-891.09467113,0.00012328,2]
[400528428,1767699038736,-891.09467113,0.00012328,2]
[400528429,1767699038746,-891.09467113,0.00012328,2]
[400528430,1767699038756,-891.09467113,0.00012328,2]
[400528431,1767699038765,-891.09467113,0.00012328,2]
[400528432,1767699038777,-891.09467113,0.00012328,2]
[400528433,1767699038787,-891.09467113,0.00012328,2]
[400528434,1767699038797,-891.09467113,0.00012328,2]
[400528435,1767699038807,-891.09467113,0.00012328,2]
[400528436,1767699038816,-891.09467113,0.00012328,2]
[400528437,1767699038826,-891.09467113,0.00012328,2]
[400528438,1767699038836,-891.09467113,0.00012328,2]
[400528440,1767699038846,-891.09467113,0.00012328,2]
[400528441,1767699038856,-172.65193538,0.00012328,2]
[400528443,1767699038866,-500.0,0.00012328,2]
[400528445,1767699038875,-500.0,0.00012328,2]
[400528447,1767699038884,-456.97974505,0.00012328,2]
[400528448,1767699038895,-50000.0,0.00012329,2]
[400528449,1767699038904,-469.4,0.00012329,2]
[400528450,1767699038914,-1291.63,0.00012329,2]
[400528451,1767699038924,-1076.36,0.00012329,2]
[400528452,1767699038933,-896.96,0.00012329,2]
[400528454,1767699038943,-747.47,0.00012329,2]
[400528455,1767699038953,-622.89,0.00012329,2]
[400528456,1767699038963,-519.08,0.00012329,2]
[400528457,1767699038974,-300.0,0.00012574,2]
[400528458,1767699038984,-300.0,0.00012574,2]
[400528459,1767699038994,-300.0,0.00012574,2]
[400528461,1767699039004,-300.0,0.00012574,2]
[400528462,1767699039014,-300.0,0.00012574,2]
[400528463,1767699039023,-300.0,0.00012574,2]
[400528464,1767699039033,-300.0,0.00012574,2]
[400528465,1767699039043,-300.0,0.00012574,2]
[400528466,1767699039053,-300.0,0.00012574,2]
[400528467,1767699039064,-300.0,0.00012574,2]
[400528469,1767699039074,-300.0,0.00012574,2]
[400528470,1767699039084,-300.0,0.00012574,2]
[400528471,1767699039094,-300.0,0.00012574,2]
[400528472,1767699039104,-300.0,0.00012574,2]
[400528473,1767699039114,-300.0,0.00012574,2]
[400528474,1767699039125,-254.75,0.00012704,2]
[400528475,1767699039135,-600.0,0.00012824,2]
[400528476,1767699039145,-250.0,0.00013213,2]
[400528477,1767699039155,-500.0,0.00013273,2]
[400528478,1767699039165,-500.0,0.00013273,2]
[400528479,1767699039176,-165.819,0.00013327,2]
[400528480,1767699039186,-165.11029521,0.00013398,2]
[400528481,1767699039196,-420.0,0.00013418,2]
[400528482,1767699039206,-297.2,0.00013498,2]
[400528484,1767699039215,-153.0,0.00013589,2]
[400528485,1767699039225,-153.0,0.00013589,2]
[400528486,1767699039234,-153.0,0.00013589,2]
[400528487,1767699039243,-153.0,0.00013589,2]
[400528488,1767699039253,-153.0,0.00013589,2]
[400528489,1767699039262,-153.0,0.00013589,2]
[400528490,1767699039272,-153.0,0.00013589,2]
[400528492,1767699039282,-153.0,0.00013589,2]
[400528493,1767699039291,-153.0,0.00013589,2]
[400528494,1767699039301,-153.0,0.00013589,2]
[400528495,1767699039310,-153.0,0.00013589,2]
[400528496,1767699039319,-153.0,0.00013589,2]
[400528497,1767699039329,-1000000.0,0.00013599,2]
[400528498,1767699039338,-500.0,0.00013672,2]
[400528499,1767699039347,-500.0,0.00013672,2]
[400528501,1767699039357,-500.0,0.00013672,2]
[400528502,1767699039366,-500.0,0.00013672,2]
[400528503,1767699039375,-500.0,0.00013672,2]
[400528504,1767699039384,-500.0,0.00013672,2]
[400528505,1767699039394,-500.0,0.00013672,2]
[400528506,1767699039405,-500.0,0.00013672,2]
[400528507,1767699039414,-500.0,0.00013672,2]
[400528508,1767699039423,-500.0,0.00013672,2]
[400528509,1767699039432,-500.0,0.00013672,2]
[400528510,1767699039441,-500.0,0.00013672,2]
[400528511,1767699039451,-500.0,0.00013672,2]
[400528512,1767699039460,-500.0,0.00013672,2]
[400528513,1767699039469,-500.0,0.00013672,2]
[400528514,1767699039479,-500.0,0.00013672,2]
[400528515,1767699039489,-511.14869574,0.00013672,2]
[400528516,1767699039498,-300.0,0.00013673,2]
[400528517,1767699039507,-500.0,0.00013698,2]
[400528518,1767699039516,-200.0,0.00013698,2]
[400528519,1767699039526,-154.84,0.00013698,2]
[400528520,1767699039535,-500.0,0.00013698,2]
[400528521,1767699039545,-500.0,0.00013698,2]
[400528523,1767699039555,-500.0,0.00013698,2]
[400528524,1767699039565,-500.0,0.00013698,2]
[400528525,1767699039574,-500.0,0.00013698,2]
[400528526,1767699039585,-500.0,0.00013698,2]
[400528527,1767699039595,-500.0,0.00013698,2]
[400528528,1767699039604,-500.0,0.00013698,2]
[400528529,1767699039613,-500.0,0.00013698,2]
[400528530,1767699039623,-500.0,0.00013698,2]
[400528531,1767699039632,-500.0,0.00013698,2]
[400528532,1767699039644,-500.0,0.00013698,2]